fUSD/lending_fUSD_20260622
["ID","MTS","AMOUNT","RATE_DAILY","PERIOD"]
[426065380,1782132693000,-500.0,0.00028767,2]
[426065379,1782132693000,-500.0,0.00028767,2]
[426065388,1782132693000,-192.78,0.00028822,30]
[426065381,1782132693000,-252.0,0.00028767,2]
[426065392,1782132693000,-619.15,0.00028882,30]
[426065446,1782132694000,-500.0,0.00029041,2]
[426065459,1782132694000,-510.3762361,0.00029041,2]
[426065449,1782132694000,-500.0,0.00029041,2]
[426065452,1782132694000,-500.0,0.00029041,2]
[426065453,1782132694000,-500.0,0.00029041,2]
[426065463,1782132694000,-500.0,0.00029041,2]
[426065460,1782132694000,-500.0,0.00029041,2]
[426065455,1782132694000,-500.0,0.00029041,2]
[426065458,1782132694000,-500.0,0.00029041,2]
[426065465,1782132694000,-500.0,0.00029041,2]
[426065454,1782132694000,-500.0,0.00029041,2]
[426065461,1782132694000,-500.0,0.00029041,2]
[426065457,1782132694000,-500.0,0.00029041,2]
[426065456,1782132694000,-500.0,0.00029041,2]
[426065448,1782132694000,-636.01,0.00029041,2]
[426065475,1782132694000,-530.66,0.00029041,2]
[426065464,1782132694000,-500.0,0.00029041,2]
[426065467,1782132694000,-623.74,0.00029041,2]
[426065466,1782132694000,-500.0,0.00029041,2]
[426065470,1782132694000,-500.0,0.00029041,2]
[426065462,1782132694000,-500.0,0.00029041,2]
[426065444,1782132694000,-500.0,0.00029041,2]
[426065447,1782132694000,-500.0,0.00029041,2]
[426065451,1782132694000,-809.71,0.00029041,2]
[426065468,1782132694000,-680.81,0.00029041,2]
[426065427,1782132694000,-952.92025859,0.0002902,2]
[426065426,1782132694000,-867.44810072,0.0002902,2]
[426065425,1782132694000,-156.78840097,0.00029019,30]
[426065428,1782132694000,-924.91130269,0.0002902,2]
[426065432,1782132694000,-636.7,0.00029023,7]
[426065438,1782132694000,-500.0,0.00029041,2]
[426065436,1782132694000,-500.0,0.00029041,2]
[426065433,1782132694000,-192.78,0.00029041,7]
[426065440,1782132694000,-500.0,0.00029041,2]
[426065430,1782132694000,-904.9889227,0.0002902,2]
[426065437,1782132694000,-500.0,0.00029041,2]
[426065439,1782132694000,-500.0,0.00029041,2]
[426065434,1782132694000,-643.69,0.00029041,2]
[426065431,1782132694000,-173.13,0.0002902,2]
[426065443,1782132694000,-500.0,0.00029041,2]
[426065445,1782132694000,-531.19988487,0.00029041,2]
[426065442,1782132694000,-500.0,0.00029041,2]
[426065450,1782132694000,-500.0,0.00029041,2]
[426065441,1782132694000,-500.0,0.00029041,2]
[426065435,1782132694000,-535.03,0.00029041,2]
[426065429,1782132694000,-929.54322403,0.0002902,2]
[426065469,1782132694000,-500.0,0.00029041,2]
[426065473,1782132694000,-500.0,0.00029041,2]
[426065493,1782132694000,-571.89,0.00029041,2]
[426065500,1782132694000,-500.0,0.00029041,2]
[426065501,1782132694000,-500.0,0.00029041,2]
[426065502,1782132694000,-658.57,0.00029041,2]
[426065508,1782132694000,-500.0,0.00029041,2]
[426065510,1782132694000,-500.0,0.00029041,2]
[426065509,1782132694000,-500.0,0.00029041,2]
[426065511,1782132694000,-500.0,0.00029041,2]
[426065503,1782132694000,-500.0,0.00029041,2]
[426065499,1782132694000,-504.10091882,0.00029041,2]
[426065504,1782132694000,-500.0,0.00029041,2]
[426065506,1782132694000,-500.0,0.00029041,2]
[426065512,1782132694000,-500.0,0.00029041,2]
[426065514,1782132694000,-1119.11,0.00029041,2]
[426065515,1782132694000,-500.0,0.00029041,2]
[426065518,1782132694000,-500.0,0.00029041,2]
[426065517,1782132694000,-494.43424089,0.00029041,2]
[426065513,1782132694000,-500.0,0.00029041,2]
[426065516,1782132694000,-500.0,0.00029041,2]
[426065471,1782132694000,-620.48919099,0.00029041,2]
[426065507,1782132694000,-900.21,0.00029041,2]
[426065497,1782132694000,-500.0,0.00029041,2]
[426065505,1782132694000,-500.0,0.00029041,2]
[426065494,1782132694000,-500.0,0.00029041,2]
[426065472,1782132694000,-500.0,0.00029041,2]
[426065498,1782132694000,-500.0,0.00029041,2]
[426065474,1782132694000,-500.0,0.00029041,2]
[426065476,1782132694000,-500.0,0.00029041,2]
[426065480,1782132694000,-500.0,0.00029041,2]
[426065477,1782132694000,-500.0,0.00029041,2]
[426065482,1782132694000,-738.63,0.00029041,2]
[426065481,1782132694000,-500.0,0.00029041,2]
[426065479,1782132694000,-500.0,0.00029041,2]
[426065478,1782132694000,-645.02,0.00029041,2]
[426065485,1782132694000,-500.0,0.00029041,2]
[426065483,1782132694000,-234.03815113,0.00029041,2]
[426065486,1782132694000,-500.0,0.00029041,2]
[426065488,1782132694000,-500.0,0.00029041,2]
[426065490,1782132694000,-230.16,0.00029041,2]
[426065487,1782132694000,-500.0,0.00029041,2]
[426065489,1782132694000,-500.0,0.00029041,2]
[426065491,1782132694000,-500.0,0.00029041,2]
[426065496,1782132694000,-642.27486139,0.00029041,2]
[426065484,1782132694000,-500.0,0.00029041,2]
[426065495,1782132694000,-500.0,0.00029041,2]
[426065492,1782132694000,-500.0,0.00029041,2]
[426065560,1782132695000,-500.0,0.00029041,2]
[426065558,1782132695000,-523.18681558,0.00029041,2]
[426065552,1782132695000,-500.0,0.00029041,2]
[426065553,1782132695000,-724.98,0.00029041,2]
[426065557,1782132695000,-500.0,0.00029041,2]
[426065556,1782132695000,-500.0,0.00029041,2]
[426065549,1782132695000,-276.24,0.00029041,2]
[426065545,1782132695000,-500.0,0.00029041,2]
[426065555,1782132695000,-500.0,0.00029041,2]
[426065563,1782132695000,-309.89678098,0.00029041,2]
[426065548,1782132695000,-658.76,0.00029041,2]
[426065550,1782132695000,-202.54639302,0.00029041,2]
[426065567,1782132695000,-500.0,0.00029041,2]
[426065572,1782132695000,-500.0,0.00029041,2]
[426065562,1782132695000,-500.0,0.00029041,2]
[426065561,1782132695000,-500.0,0.00029041,2]
[426065568,1782132695000,-500.0,0.00029041,2]
[426065559,1782132695000,-500.0,0.00029041,2]
[426065566,1782132695000,-487.34139348,0.00029041,2]
[426065565,1782132695000,-500.0,0.00029041,2]
[426065570,1782132695000,-636.6,0.00029041,2]
[426065569,1782132695000,-964.0,0.00029041,2]
[426065571,1782132695000,-518.24,0.00029041,2]
[426065576,1782132695000,-500.0,0.00029041,2]
[426065573,1782132695000,-716.56,0.00029041,2]
[426065551,1782132695000,-596.45,0.00029041,2]
[426065564,1782132695000,-500.0,0.00029041,2]
[426065547,1782132695000,-513.34743473,0.00029041,2]
[426065524,1782132695000,-716.59,0.00029041,2]
[426065546,1782132695000,-536.15,0.00029041,2]
[426065574,1782132695000,-500.0,0.00029041,2]
[426065520,1782132695000,-500.0,0.00029041,2]
[426065519,1782132695000,-500.0,0.00029041,2]
[426065522,1782132695000,-500.0,0.00029041,2]
[426065521,1782132695000,-1240.13,0.00029041,2]
[426065523,1782132695000,-1174.76,0.00029041,2]
[426065526,1782132695000,-500.0,0.00029041,2]
[426065525,1782132695000,-500.0,0.00029041,2]
[426065528,1782132695000,-500.0,0.00029041,2]
[426065527,1782132695000,-514.55,0.00029041,2]
[426065529,1782132695000,-500.0,0.00029041,2]
[426065530,1782132695000,-500.0,0.00029041,2]
[426065554,1782132695000,-773.21,0.00029041,2]
[426065532,1782132695000,-500.0,0.00029041,2]
[426065544,1782132695000,-500.0,0.00029041,2]
[426065534,1782132695000,-597.59191964,0.00029041,2]
[426065533,1782132695000,-500.0,0.00029041,2]
[426065535,1782132695000,-500.0,0.00029041,2]
[426065538,1782132695000,-500.0,0.00029041,2]
[426065537,1782132695000,-717.75,0.00029041,2]
[426065542,1782132695000,-456.08326286,0.00029041,2]
[426065536,1782132695000,-500.0,0.00029041,2]
[426065540,1782132695000,-500.0,0.00029041,2]
[426065539,1782132695000,-176.05684882,0.00029041,2]
[426065543,1782132695000,-500.0,0.00029041,2]
[426065541,1782132695000,-524.25,0.00029041,2]
[426065531,1782132695000,-500.0,0.00029041,2]
[426065578,1782132695000,-532.59,0.00029041,2]
[426065602,1782132695000,-926.45,0.00029041,2]
[426065577,1782132695000,-506.89,0.00029041,2]
[426065606,1782132695000,-477.55,0.00029041,2]
[426065615,1782132695000,-500.0,0.00029041,2]
[426065608,1782132695000,-500.0,0.00029041,2]
[426065614,1782132695000,-1057.14,0.00029041,2]
[426065613,1782132695000,-500.0,0.00029041,2]
[426065616,1782132695000,-500.0,0.00029041,2]
[426065609,1782132695000,-1013.11,0.00029041,2]
[426065604,1782132695000,-500.0,0.00029041,2]
[426065628,1782132695000,-635.4,0.00029041,2]
[426065626,1782132695000,-824.11,0.00029041,2]
[426065621,1782132695000,-923.61,0.00029041,2]
[426065627,1782132695000,-500.0,0.00029041,2]
[426065610,1782132695000,-500.0,0.00029041,2]
[426065617,1782132695000,-500.0,0.00029041,2]
[426065618,1782132695000,-500.0,0.00029041,2]
[426065625,1782132695000,-1542.67,0.00029041,2]
[426065620,1782132695000,-500.0,0.00029041,2]
[426065619,1782132695000,-597.7,0.00029041,2]
[426065622,1782132695000,-500.0,0.00029041,2]
[426065623,1782132695000,-500.0,0.00029041,2]
[426065624,1782132695000,-500.0,0.00029041,2]
[426065633,1782132695000,-151.94033213,0.00029041,2]
[426065632,1782132695000,-500.0,0.00029041,2]
[426065630,1782132695000,-500.0,0.00029041,2]
[426065635,1782132695000,-596.38,0.00029041,2]
[426065634,1782132695000,-750.36,0.00029041,2]
[426065629,1782132695000,-500.0,0.00029041,2]
[426065611,1782132695000,-501.10701458,0.00029041,2]
[426065575,1782132695000,-500.0,0.00029041,2]
[426065605,1782132695000,-500.0,0.00029041,2]
[426065579,1782132695000,-500.0,0.00029041,2]
[426065582,1782132695000,-1578.36,0.00029041,2]
[426065580,1782132695000,-212.24791638,0.00029041,2]
[426065585,1782132695000,-500.0,0.00029041,2]
[426065584,1782132695000,-3740.4,0.00029041,2]
[426065589,1782132695000,-500.0,0.00029041,2]
[426065581,1782132695000,-1096.6,0.00029041,2]
[426065607,1782132695000,-604.61,0.00029041,2]
[426065587,1782132695000,-500.0,0.00029041,2]
[426065586,1782132695000,-500.0,0.00029041,2]
[426065590,1782132695000,-2823.9,0.00029041,2]
[426065588,1782132695000,-398.15370988,0.00029041,2]
[426065591,1782132695000,-500.0,0.00029041,2]
[426065583,1782132695000,-827.1,0.00029041,2]
[426065593,1782132695000,-500.0,0.00029041,2]
[426065601,1782132695000,-500.0,0.00029041,2]
[426065612,1782132695000,-500.0,0.00029041,2]
[426065600,1782132695000,-1589.11,0.00029041,2]
[426065598,1782132695000,-500.0,0.00029041,2]
[426065631,1782132695000,-500.0,0.00029041,2]
[426065594,1782132695000,-500.0,0.00029041,2]
[426065597,1782132695000,-766.88,0.00029041,2]
[426065595,1782132695000,-645.41,0.00029041,2]
[426065596,1782132695000,-500.0,0.00029041,2]
[426065599,1782132695000,-1209.24,0.00029041,2]
[426065592,1782132695000,-253.34688709,0.00029041,2]
[426065603,1782132695000,-4341.3,0.00029041,2]
[426065673,1782132696000,-528.45,0.00029041,2]
[426065676,1782132696000,-627.694756,0.00029041,7]
[426065677,1782132696000,-500.0,0.00029041,2]
[426065675,1782132696000,-627.694756,0.00029041,7]
[426065670,1782132696000,-500.0,0.00029041,2]
[426065663,1782132696000,-555.85,0.00029041,2]
[426065672,1782132696000,-637.77,0.00029041,2]
[426065669,1782132696000,-439.35,0.00029041,2]
[426065667,1782132696000,-368.05,0.00029041,2]
[426065668,1782132696000,-569.52,0.00029041,2]
[426065671,1782132696000,-194.85,0.00029041,2]
[426065674,1782132696000,-500.0,0.00029041,2]
[426065692,1782132696000,-1269.777014,0.00029041,7]
[426065682,1782132696000,-627.694756,0.00029041,7]
[426065685,1782132696000,-713.09,0.00029041,2]
[426065689,1782132696000,-451.688582,0.00029041,7]
[426065686,1782132696000,-4400.650627,0.00029041,7]
[426065684,1782132696000,-1212.405885,0.00029041,7]
[426065683,1782132696000,-4400.650627,0.00029041,7]
[426065679,1782132696000,-4400.650627,0.00029041,7]
[426065680,1782132696000,-151.0,0.00029041,2]
[426065681,1782132696000,-663.75,0.00029041,2]
[426065688,1782132696000,-1269.777014,0.00029041,7]
[426065687,1782132696000,-1212.405885,0.00029041,7]
[426065691,1782132696000,-1212.405885,0.00029041,7]
[426065662,1782132696000,-500.0,0.00029041,2]
[426065678,1782132696000,-627.694756,0.00029041,7]
[426065666,1782132696000,-500.0,0.00029041,2]
[426065649,1782132696000,-500.0,0.00029041,2]
[426065665,1782132696000,-500.0,0.00029041,2]
[426065700,1782132696000,-1269.777014,0.00029041,7]
[426065638,1782132696000,-500.0,0.00029041,2]
[426065639,1782132696000,-536.32,0.00029041,2]
[426065641,1782132696000,-773.34,0.00029041,2]
[426065637,1782132696000,-500.0,0.00029041,2]
[426065640,1782132696000,-4511.56,0.00029041,2]
[426065636,1782132696000,-500.0,0.00029041,2]
[426065652,1782132696000,-2000.0,0.00029041,2]
[426065643,1782132696000,-500.0,0.00029041,2]
[426065654,1782132696000,-3964.2,0.00029041,2]
[426065655,1782132696000,-1024.72,0.00029041,2]
[426065653,1782132696000,-500.0,0.00029041,2]
[426065656,1782132696000,-500.0,0.00029041,2]
[426065644,1782132696000,-178.63081781,0.00029041,2]
[426065645,1782132696000,-500.0,0.00029041,2]
[426065651,1782132696000,-824.69,0.00029041,2]
[426065650,1782132696000,-500.0,0.00029041,2]
[426065648,1782132696000,-1674.8,0.00029041,2]
[426065646,1782132696000,-500.0,0.00029041,2]
[426065647,1782132696000,-566.93,0.00029041,2]
[426065657,1782132696000,-500.0,0.00029041,2]
[426065660,1782132696000,-500.0,0.00029041,2]
[426065664,1782132696000,-500.0,0.00029041,2]
[426065658,1782132696000,-500.0,0.00029041,2]
[426065659,1782132696000,-262.6,0.00029041,2]
[426065661,1782132696000,-500.0,0.00029041,2]
[426065642,1782132696000,-1625.31,0.00029041,2]
[426065699,1782132696000,-451.688582,0.00029041,7]
[426065694,1782132696000,-500.0,0.00029041,2]
[426065690,1782132696000,-4400.650627,0.00029041,7]
[426065728,1782132696000,-166.842779,0.00029041,7]
[426065727,1782132696000,-622.93,0.00029041,2]
[426065723,1782132696000,-163.063415,0.00029041,7]
[426065726,1782132696000,-855.41,0.00029041,2]
[426065729,1782132696000,-500.0,0.00029041,2]
[426065731,1782132696000,-151.0,0.00029041,7]
[426065730,1782132696000,-569.08,0.00029041,2]
[426065733,1782132696000,-151.0,0.00029041,7]
[426065732,1782132696000,-500.0,0.00029041,2]
[426065736,1782132696000,-500.0,0.00029041,2]
[426065737,1782132696000,-680.32,0.00029041,2]
[426065746,1782132696000,-151.0,0.00029041,7]
[426065741,1782132696000,-172.057362,0.00029041,7]
[426065740,1782132696000,-500.0,0.00029041,2]
[426065747,1782132696000,-3415.05,0.00029041,2]
[426065745,1782132696000,-151.0,0.00029041,7]
[426065743,1782132696000,-500.0,0.00029041,2]
[426065739,1782132696000,-151.0,0.00029041,7]
[426065742,1782132696000,-151.0,0.00029041,7]
[426065744,1782132696000,-500.0,0.00029041,2]
[426065693,1782132696000,-395.974434,0.00029041,7]
[426065753,1782132696000,-412.8,0.00029041,2]
[426065749,1782132696000,-151.0,0.00029041,7]
[426065751,1782132696000,-450.35,0.00029041,2]
[426065748,1782132696000,-890.14,0.00029041,2]
[426065750,1782132696000,-312.36578773,0.00029041,2]
[426065752,1782132696000,-500.0,0.00029041,2]
[426065725,1782132696000,-166.842779,0.00029041,7]
[426065735,1782132696000,-500.0,0.00029041,2]
[426065738,1782132696000,-934.58,0.00029041,2]
[426065724,1782132696000,-572.74,0.00029041,2]
[426065734,1782132696000,-1202.22,0.00029041,2]
[426065695,1782132696000,-451.688582,0.00029041,7]
[426065698,1782132696000,-395.974434,0.00029041,7]
[426065697,1782132696000,-500.0,0.00029041,2]
[426065706,1782132696000,-1269.777014,0.00029041,7]
[426065702,1782132696000,-395.974434,0.00029041,7]
[426065704,1782132696000,-205.019938,0.00029041,7]
[426065701,1782132696000,-500.0,0.00029041,2]
[426065708,1782132696000,-647.54,0.00029041,2]
[426065703,1782132696000,-151.0,0.00029041,7]
[426065705,1782132696000,-451.688582,0.00029041,7]
[426065709,1782132696000,-500.0,0.00029041,2]
[426065707,1782132696000,-163.063415,0.00029041,7]
[426065696,1782132696000,-1212.405885,0.00029041,7]
[426065710,1782132696000,-772.24,0.00029041,2]
[426065712,1782132696000,-151.0,0.00029041,7]
[426065719,1782132696000,-166.842779,0.00029041,7]
[426065715,1782132696000,-205.019938,0.00029041,7]
[426065722,1782132696000,-166.842779,0.00029041,7]
[426065718,1782132696000,-205.019938,0.00029041,7]
[426065720,1782132696000,-1194.87,0.00029041,2]
[426065716,1782132696000,-163.063415,0.00029041,7]
[426065713,1782132696000,-205.019938,0.00029041,7]
[426065714,1782132696000,-163.063415,0.00029041,7]
[426065711,1782132696000,-395.974434,0.00029041,7]
[426065717,1782132696000,-500.0,0.00029041,2]
[426065721,1782132696000,-882.55,0.00029041,2]
[426065784,1782132697000,-500.0,0.00029041,2]
[426065795,1782132697000,-707.33,0.00029041,2]
[426065775,1782132697000,-2231.74,0.00029041,2]
[426065776,1782132697000,-500.0,0.00029041,2]
[426065777,1782132697000,-500.0,0.00029041,2]
[426065779,1782132697000,-1188.04,0.00029041,2]
[426065780,1782132697000,-500.0,0.00029041,2]
[426065778,1782132697000,-505.26110415,0.00029041,2]
[426065781,1782132697000,-545.6,0.00029041,2]
[426065793,1782132697000,-847.56,0.00029041,2]
[426065792,1782132697000,-944.56,0.00029041,2]
[426065788,1782132697000,-500.0,0.00029041,2]
[426065794,1782132697000,-177.156957,0.00029041,7]
[426065787,1782132697000,-324.15445186,0.00029041,2]
[426065791,1782132697000,-500.0,0.00029041,2]
[426065789,1782132697000,-500.0,0.00029041,2]
[426065796,1782132697000,-177.156957,0.00029041,7]
[426065790,1782132697000,-1460.48,0.00029041,2]
[426065797,1782132697000,-191.421969,0.00029041,7]
[426065773,1782132697000,-500.0,0.00029041,2]
[426065786,1782132697000,-839.47,0.00029041,2]
[426065798,1782132697000,-177.156957,0.00029041,7]
[426065763,1782132697000,-3873.02,0.00029041,2]
[426065785,1782132697000,-170.8947701,0.00029041,2]
[426065808,1782132697000,-606.62,0.00029041,2]
[426065758,1782132697000,-541.69,0.00029041,2]
[426065755,1782132697000,-500.0,0.00029041,2]
[426065760,1782132697000,-500.0,0.00029041,2]
[426065759,1782132697000,-151.0,0.00029041,7]
[426065754,1782132697000,-526.9,0.00029041,2]
[426065757,1782132697000,-739.58,0.00029041,2]
[426065756,1782132697000,-500.0,0.00029041,2]
[426065761,1782132697000,-258.6,0.00029041,2]
[426065769,1782132697000,-500.0,0.00029041,2]
[426065765,1782132697000,-1136.388093,0.00029041,7]
[426065772,1782132697000,-2159.89,0.00029041,2]
[426065770,1782132697000,-500.0,0.00029041,2]
[426065762,1782132697000,-500.0,0.00029041,2]
[426065764,1782132697000,-1885.55,0.00029041,2]
[426065771,1782132697000,-700.97,0.00029041,2]
[426065766,1782132697000,-500.0,0.00029041,2]
[426065767,1782132697000,-1136.388093,0.00029041,7]
[426065768,1782132697000,-1136.388093,0.00029041,7]
[426065782,1782132697000,-500.0,0.00029041,2]
[426065783,1782132697000,-4712.54,0.00029041,2]
[426065774,1782132697000,-1136.388093,0.00029041,7]
[426065800,1782132697000,-723.63,0.00029041,2]
[426065822,1782132697000,-642.58,0.00029111,2]
[426065807,1782132697000,-191.421969,0.00029041,7]
[426065828,1782132697000,-383.0,0.00029146,2]
[426065827,1782132697000,-3561.0,0.00029146,2]
[426065832,1782132697000,-173.24,0.00029232,7]
[426065831,1782132697000,-151.97,0.000292,7]
[426065829,1782132697000,-173.11,0.00029179,2]
[426065834,1782132697000,-636.7,0.00029245,2]
[426065836,1782132697000,-192.78,0.0002926,2]
[426065837,1782132697000,-619.15,0.000293,2]
[426065835,1782132697000,-200.0,0.00029248,2]
[426065838,1782132697000,-425.63,0.00029302,2]
[426065840,1782132697000,-468.27758,0.00029314,7]
[426065839,1782132697000,-500.0,0.00029314,2]
[426065841,1782132697000,-468.27758,0.00029314,7]
[426065844,1782132697000,-468.27758,0.00029314,7]
[426065842,1782132697000,-151.0,0.00029314,7]
[426065843,1782132697000,-151.0,0.00029314,7]
[426065846,1782132697000,-151.0,0.00029314,7]
[426065845,1782132697000,-151.0,0.00029314,7]
[426065847,1782132697000,-468.27758,0.00029314,7]
[426065849,1782132697000,-556.472138,0.00029314,7]
[426065801,1782132697000,-191.421969,0.00029041,7]
[426065824,1782132697000,-173.11,0.00029126,30]
[426065833,1782132697000,-173.22,0.00029232,7]
[426065848,1782132697000,-151.0,0.00029314,7]
[426065823,1782132697000,-501.0,0.00029119,4]
[426065830,1782132697000,-173.13,0.00029179,2]
[426065799,1782132697000,-338.56,0.00029041,2]
[426065802,1782132697000,-695.99,0.00029041,2]
[426065805,1782132697000,-191.421969,0.00029041,7]
[426065803,1782132697000,-500.0,0.00029041,2]
[426065804,1782132697000,-177.156957,0.00029041,7]
[426065806,1782132697000,-500.0,0.00029041,2]
[426065821,1782132697000,-425.63,0.00029094,7]
[426065816,1782132697000,-500.0,0.00029041,2]
[426065810,1782132697000,-500.0,0.00029041,2]
[426065811,1782132697000,-500.0,0.00029041,2]
[426065815,1782132697000,-500.0,0.00029041,2]
[426065809,1782132697000,-500.0,0.00029041,2]
[426065818,1782132697000,-173.11,0.00029072,7]
[426065826,1782132697000,-4462.0,0.00029141,5]
[426065812,1782132697000,-500.0,0.00029041,2]
[426065819,1782132697000,-173.13,0.00029073,7]
[426065820,1782132697000,-619.15,0.00029091,7]
[426065813,1782132697000,-500.0,0.00029041,2]
[426065817,1782132697000,-151.0,0.00029041,2]
[426065814,1782132697000,-500.0,0.00029041,2]
[426065825,1782132697000,-173.13,0.00029126,30]
[426065880,1782132698000,-500.0,0.00029315,2]
[426065881,1782132698000,-500.0,0.00029315,2]
[426065874,1782132698000,-500.0,0.00029315,2]
[426065878,1782132698000,-178.85291698,0.00029315,2]
[426065875,1782132698000,-500.0,0.00029315,2]
[426065872,1782132698000,-809.71,0.00029315,2]
[426065890,1782132698000,-500.0,0.00029315,2]
[426065882,1782132698000,-500.0,0.00029315,2]
[426065889,1782132698000,-500.0,0.00029315,2]
[426065902,1782132698000,-500.0,0.00029315,2]
[426065879,1782132698000,-500.0,0.00029315,2]
[426065884,1782132698000,-500.0,0.00029315,2]
[426065887,1782132698000,-680.81,0.00029315,2]
[426065883,1782132698000,-500.0,0.00029315,2]
[426065886,1782132698000,-623.74,0.00029315,2]
[426065888,1782132698000,-500.0,0.00029315,2]
[426065892,1782132698000,-500.0,0.00029315,2]
[426065891,1782132698000,-500.0,0.00029315,2]
[426065876,1782132698000,-500.0,0.00029315,2]
[426065885,1782132698000,-500.0,0.00029315,2]
[426065873,1782132698000,-500.0,0.00029315,2]
[426065865,1782132698000,-500.0,0.00029315,2]
[426065869,1782132698000,-636.01,0.00029315,2]
[426065894,1782132698000,-296.88,0.00029315,2]
[426065855,1782132698000,-556.472138,0.00029314,7]
[426065852,1782132698000,-151.0,0.00029314,7]
[426065853,1782132698000,-556.472138,0.00029314,7]
[426065854,1782132698000,-151.0,0.00029314,7]
[426065850,1782132698000,-151.0,0.00029314,7]
[426065851,1782132698000,-556.472138,0.00029314,7]
[426065856,1782132698000,-643.69,0.00029315,2]
[426065857,1782132698000,-535.03,0.00029315,2]
[426065863,1782132698000,-500.0,0.00029315,2]
[426065860,1782132698000,-500.0,0.00029315,2]
[426065859,1782132698000,-500.0,0.00029315,2]
[426065858,1782132698000,-200.05643035,0.00029315,2]
[426065862,1782132698000,-500.0,0.00029315,2]
[426065861,1782132698000,-500.0,0.00029315,2]
[426065864,1782132698000,-500.0,0.00029315,2]
[426065866,1782132698000,-500.0,0.00029315,2]
[426065868,1782132698000,-433.08,0.00029315,2]
[426065867,1782132698000,-500.0,0.00029315,2]
[426065870,1782132698000,-500.0,0.00029315,2]
[426065877,1782132698000,-500.0,0.00029315,2]
[426065871,1782132698000,-514.47,0.00029315,2]
[426065893,1782132698000,-530.66,0.00029315,2]
[426065906,1782132698000,-500.0,0.00029315,2]
[426065896,1782132698000,-217.11768845,0.00029315,2]
[426065920,1782132698000,-900.21,0.00029315,2]
[426065923,1782132698000,-500.0,0.00029315,2]
[426065919,1782132698000,-500.0,0.00029315,2]
[426065922,1782132698000,-500.0,0.00029315,2]
[426065927,1782132698000,-1119.11,0.00029315,2]
[426065939,1782132698000,-514.55,0.00029315,2]
[426065933,1782132698000,-1240.13,0.00029315,2]
[426065931,1782132698000,-365.02,0.00029315,2]
[426065935,1782132698000,-1174.76,0.00029315,2]
[426065924,1782132698000,-500.0,0.00029315,2]
[426065932,1782132698000,-507.8500955,0.00029315,2]
[426065934,1782132698000,-500.0,0.00029315,2]
[426065897,1782132698000,-500.0,0.00029315,2]
[426065936,1782132698000,-716.59,0.00029315,2]
[426065930,1782132698000,-500.0,0.00029315,2]
[426065937,1782132698000,-500.0,0.00029315,2]
[426065928,1782132698000,-500.0,0.00029315,2]
[426065941,1782132698000,-500.0,0.00029315,2]
[426065940,1782132698000,-500.0,0.00029315,2]
[426065942,1782132698000,-500.0,0.00029315,2]
[426065938,1782132698000,-500.0,0.00029315,2]
[426065921,1782132698000,-500.0,0.00029315,2]